fUSD/lending_fUSD_20240427
["ID","MTS","AMOUNT","RATE_DAILY","PERIOD"]
[323753891,1714241439835,-3477.97082314,0.00011368,2]
[323753892,1714241439893,-266.51398,0.00011368,2]
[323753893,1714241439917,-696.92,0.00011368,2]
[323753894,1714241439928,-573.37954002,0.00011368,2]
[323753895,1714241439939,-323.405,0.00011368,2]
[323753896,1714241439967,-422414.55293078,0.00011368,2]
[323753897,1714241439978,-528.097667,0.00011368,2]
[323753905,1714241442673,-1609.11132883,0.00011367,2]
[323753907,1714241442683,-7534.64059496,0.00011368,2]
[323753910,1714241442695,-1226.99999763,0.00011368,2]
[323753911,1714241442782,-1037.17902075,0.00011368,2]
[323753912,1714241442794,-1204.17105637,0.00011368,2]
[323753913,1714241442841,-572.800314,0.00011368,2]
[323753914,1714241442855,-658.35,0.00011368,2]
[323753915,1714241442903,-5972.60867431,0.00011368,2]
[323753916,1714241442916,-6544.44500001,0.00011368,2]
[323753917,1714241442927,-143024.91421734,0.00011368,2]
[323753918,1714241442958,-961.4340839,0.00011368,2]
[323753919,1714241443016,-1983.118351,0.00011368,2]
[323753937,1714241445629,-636.978012,0.00011367,2]
[323753938,1714241445641,-406.74099998,0.00011367,2]
[323753939,1714241445695,-786.80161404,0.00011367,2]
[323753940,1714241445705,-413.79693855,0.00011367,2]
[323753941,1714241445714,-533.3453203,0.00011367,2]
[323753942,1714241445728,-192.37923496,0.00011367,2]
[323753943,1714241445738,-3001.37628927,0.00011367,2]
[323753944,1714241445748,-265.24702715,0.00011367,2]
[323753945,1714241445757,-338.88620112,0.00011367,2]
[323753946,1714241445767,-968.0068632,0.00011367,2]
[323753947,1714241445776,-194.42157064,0.00011367,2]
[323753948,1714241445787,-359.64228895,0.00011367,2]
[323753949,1714241445796,-289703.55168679,0.00011368,2]
[323753950,1714241445808,-823.29,0.00011368,2]
[323753951,1714241445820,-353.72775362,0.00011368,2]
[323753952,1714241445832,-10049.11556207,0.00011368,2]
[323753953,1714241674941,807.61,8.219e-05,2]
[323753954,1714241721400,155.0,8.219e-05,2]
[323753955,1714241836833,154.33935929,3.706e-05,2]
[323753956,1714241836872,1714.7145206,4.023e-05,2]
[323753957,1714241837115,164.40558415,6.048e-05,2]
[323753958,1714241837334,154.33935929,7.136e-05,2]
[323753959,1714241837377,159.43756685,6.464e-05,2]
[323753960,1714241837415,1714.7145206,4.034e-05,2]
[323753961,1714241837455,172.54213287,3.76e-05,2]
[323753962,1714241837598,584.58417024,3.085e-05,2]
[323753963,1714241837712,163.58070561,6.861e-05,2]
[323753964,1714241837851,154.33935929,7.325e-05,2]
[323753965,1714241837903,172.54213287,4.726e-05,2]
[323753966,1714241838123,584.58417024,5.755e-05,2]
[323753967,1714241838164,1714.7145206,4.329e-05,2]
[323753968,1714241838210,159.87497786,5.195e-05,2]
[323753969,1714241838338,154.33935929,7.804e-05,2]
[323753970,1714241838402,172.54213287,5.019e-05,2]
[323753971,1714241838622,584.58417024,6.02e-05,2]
[323753972,1714241838675,1714.7145206,5.406e-05,2]
[323753973,1714241839491,584.58417024,6.572e-05,2]
[323753974,1714241839537,1714.7145206,6.701e-05,2]
[323753975,1714241839779,172.54213287,5.302e-05,2]
[323753976,1714241839829,584.58417024,6.719e-05,2]
[323753977,1714241839877,44.01634628,8.338e-05,2]
[323753978,1714241839901,1670.69817432,8.338e-05,2]
[323753979,1714241840001,172.54213287,5.795e-05,2]
[323753980,1714241840196,584.58417024,8.361e-05,2]
[323753981,1714241840505,172.54213287,6.287e-05,2]
[323753982,1714241840542,166.66666666,6.345e-05,2]
[323753983,1714241840900,167.73123125,4.819e-05,2]
[323753984,1714241841031,172.54213287,6.88e-05,2]
[323753985,1714241841137,152.51470155,5.072e-05,2]
[323753986,1714241841170,158.47655819,7.036e-05,2]
[323753987,1714241841220,202.26013741,3.267e-05,2]
[323753988,1714241841456,155.04600888,6.426e-05,2]
[323753989,1714241841585,172.54213287,7.143e-05,2]
[323753990,1714241841726,202.26013741,4.552e-05,2]
[323753991,1714241842068,172.54213287,7.833e-05,2]
[323753992,1714241842176,166.63656948,6.829e-05,2]
[323753993,1714241842211,202.26013741,5.043e-05,2]
[323753994,1714241842315,176.83814125,5.052e-05,2]
[323753995,1714241842564,172.54213287,8.113e-05,2]
[323753996,1714241842689,202.26013741,6.256e-05,2]
[323753997,1714241843320,155.2311637,6.222e-05,2]
[323753998,1714241843648,172.54213287,8.3e-05,2]
[323753999,1714241843713,202.26013741,6.455e-05,2]
[323754000,1714241844214,152.53804915,3.041e-05,2]
[323754001,1714241844340,156.96410519,4.213e-05,2]
[323754002,1714241844514,202.26013741,6.891e-05,2]
[323754003,1714241844561,152.53804915,3.497e-05,2]
[323754004,1714241844591,156.96410519,4.635e-05,2]
[323754005,1714241844675,166.84086597,6.422e-05,2]
[323754006,1714241844719,154.2099099,6.476e-05,2]
[323754007,1714241844764,202.26013741,6.966e-05,2]
[323754008,1714241844858,156.96410519,5.273e-05,2]
[323754009,1714241845037,152.53804915,4.397e-05,2]
[323754010,1714241845190,154.2099099,6.698e-05,2]
[323754011,1714241845392,156.96410519,6.025e-05,2]
[323754012,1714241845542,152.53804915,4.608e-05,2]
[323754013,1714241846052,154.2099099,7.696e-05,2]
[323754014,1714241846099,202.26013741,7.763e-05,2]
[323754015,1714241846139,156.96410519,6.141e-05,2]
[323754016,1714241846195,152.53804915,7.21e-05,2]
[323754017,1714241846290,154.2099099,7.783e-05,2]
[323754018,1714241846607,156.96410519,6.461e-05,2]
[323754019,1714241846649,152.4520058,3.789e-05,2]
[323754020,1714241846716,152.53804915,8.09e-05,2]
[323754021,1714241846756,153.74189845,6.339e-05,2]
[323754022,1714241846801,154.2099099,8.456e-05,2]
[323754023,1714241847035,156.96410519,7.305e-05,2]
[323754024,1714241847077,152.4520058,3.978e-05,2]
[323754025,1714241847113,154.2098279,4.112e-05,2]
[323754026,1714241847175,152.53804915,8.281e-05,2]
[323754027,1714241847222,153.74189845,7.033e-05,2]
[323754028,1714241847336,154.49647209,8.326e-05,2]
[323754029,1714241847571,152.4520058,4.036e-05,2]
[323754030,1714241847607,154.2098279,4.752e-05,2]
[323754031,1714241847656,152.53804915,8.363e-05,2]
[323754032,1714241848086,297.77998695,4.254e-05,2]
[323754033,1714241848121,152.4520058,4.292e-05,2]
[323754034,1714241848164,673.55641699,3.59e-05,2]
[323754035,1714241848220,152.53804915,8.377e-05,2]
[323754036,1714241848252,154.2098279,5.209e-05,2]
[323754037,1714241848448,221.15147709,3.446e-05,2]
[323754038,1714241848740,152.4520058,4.368e-05,2]
[323754039,1714241848773,673.55641699,5.755e-05,2]
[323754040,1714241848810,154.2098279,5.649e-05,2]
[323754041,1714241848909,221.15147709,3.814e-05,2]
[323754042,1714241849066,152.4520058,5.381e-05,2]
[323754043,1714241849116,673.55641699,5.937e-05,2]
[323754044,1714241849150,154.2098279,5.984e-05,2]
[323754045,1714241849185,297.77998695,4.446e-05,2]
[323754046,1714241849354,221.15147709,4.089e-05,2]
[323754047,1714241849689,152.4520058,5.839e-05,2]
[323754048,1714241849730,166.66666666,4.012e-05,2]
[323754049,1714241849783,154.2098279,6.788e-05,2]
[323754050,1714241849820,673.55641699,6.033e-05,2]
[323754051,1714241849852,297.77998695,5.011e-05,2]
[323754052,1714241850031,221.15147709,4.57e-05,2]
[323754053,1714241850087,152.97791668,3.727e-05,2]
[323754054,1714241850167,673.55641699,6.225e-05,2]
[323754055,1714241850205,154.2098279,8.275e-05,2]
[323754056,1714241850274,259.95632151,3.115e-05,2]
[323754057,1714241850580,152.97791668,4.075e-05,2]
[323754058,1714241850716,673.55641699,6.244e-05,2]
[323754059,1714241850763,297.77998695,5.25e-05,2]
[323754060,1714241850919,221.15147709,5.373e-05,2]
[323754061,1714241851071,152.97791668,4.176e-05,2]
[323754062,1714241851187,673.55641699,6.265e-05,2]
[323754063,1714241851312,297.77998695,5.429e-05,2]
[323754064,1714241851348,155.0,5e-05,2]
[323754065,1714241851429,221.15147709,7.626e-05,2]
[323754066,1714241851722,673.55641699,6.536e-05,2]
[323754067,1714241851822,297.77998695,6.488e-05,2]
[323754068,1714241851990,221.15147709,8.337e-05,2]
[323754069,1714241852122,152.97791668,4.514e-05,2]
[323754070,1714241852333,297.77998695,6.614e-05,2]
[323754071,1714241852370,163.96849989,3.897e-05,2]
[323754072,1714241852410,673.55641699,6.55e-05,2]
[323754073,1714241852564,163.32959837,4.922e-05,2]
[323754074,1714241852618,152.97791668,4.633e-05,2]
[323754075,1714241852900,297.77998695,7.817e-05,2]
[323754076,1714241852934,673.55641699,7.146e-05,2]
[323754077,1714241853134,152.97791668,5.75e-05,2]
[323754078,1714241853174,166.46797124,8.002e-05,2]
[323754079,1714241853431,297.77998695,8.227e-05,2]
[323754080,1714241853945,297.77998695,8.327e-05,2]
[323754081,1714241854153,152.97791668,5.833e-05,2]
[323754082,1714241854928,152.97791668,5.897e-05,2]
[323754083,1714241855186,152.97791668,6.909e-05,2]
[323754084,1714241855708,152.97791668,8.254e-05,2]
[323754085,1714241857996,781.6572709,5.01e-05,2]
[323754086,1714241865899,263.98,0.0001063,10]
[323754087,1714241961530,1294.55623512,8.501e-05,2]
[323754088,1714241962291,1675.82584204,8.501e-05,2]
[323754089,1714241983779,1995.6221796,8.501e-05,2]
[323754090,1714241985761,1830.52062602,8.501e-05,2]
[323754091,1714241987357,200.3869162,8.501e-05,2]
[323754092,1714241994837,538.21116998,8.501e-05,2]
[323754093,1714241995383,155.68785924,8.501e-05,2]
[323754094,1714241999964,320.25027245,8.501e-05,2]
[323754095,1714242001871,2216.45947127,8.501e-05,2]
[323754096,1714242008388,3001.37628927,8.501e-05,2]
[323754097,1714242011347,4731.13400716,8.501e-05,2]
[323754098,1714242012461,194.47654533,8.501e-05,2]
[323754099,1714242017365,872.00981847,8.501e-05,2]
[323754100,1714242018120,5548.56882649,8.501e-05,2]
[323754101,1714242063194,150.0,8.501e-05,2]
[323754102,1714242092062,191.05,8.219e-05,2]
[323754103,1714242136244,159.43756685,4.866e-05,2]
[323754104,1714242136502,156.10954879,3.095e-05,2]
[323754105,1714242136581,1411.52393107,3.844e-05,2]
[323754106,1714242137028,156.10954879,4.083e-05,2]
[323754107,1714242137361,154.33935929,5.554e-05,2]
[323754108,1714242137398,166.61956311,3.363e-05,2]
[323754109,1714242137619,1411.52393107,4.117e-05,2]
[323754110,1714242137662,156.10954879,7.178e-05,2]
[323754111,1714242138289,467.6673362,3.711e-05,2]
[323754112,1714242138340,1411.52393107,5.066e-05,2]
[323754113,1714242138380,156.10954879,7.935e-05,2]
[323754114,1714242138445,154.33935929,6.181e-05,2]
[323754115,1714242138480,467.6673362,3.996e-05,2]
[323754116,1714242138897,154.33935929,7.322e-05,2]
[323754117,1714242138998,467.6673362,5.654e-05,2]
[323754118,1714242139163,1411.52393107,5.945e-05,2]
[323754119,1714242139505,467.6673362,5.73e-05,2]
[323754120,1714242139588,159.87497787,4.272e-05,2]
[323754121,1714242139680,1411.52393107,6.412e-05,2]
[323754122,1714242140002,467.6673362,6.647e-05,2]
[323754123,1714242140036,166.66666666,5.828e-05,2]
[323754124,1714242140361,1411.52393107,6.432e-05,2]
[323754125,1714242140504,166.66666666,8.278e-05,2]
[323754126,1714242140850,1411.52393107,7.466e-05,2]
[323754127,1714242141338,152.53804916,3.565e-05,2]
[323754128,1714242141380,158.47655819,3.066e-05,2]
[323754129,1714242141424,159.1027176,4.546e-05,2]
[323754130,1714242141462,1411.52393107,7.703e-05,2]
[323754131,1714242141715,152.53804916,4.178e-05,2]
[323754132,1714242141755,158.47655819,8.193e-05,2]
[323754133,1714242141847,152.51470156,3.371e-05,2]
[323754134,1714242141898,159.1027176,6.527e-05,2]
[323754135,1714242141942,1411.52393107,8.345e-05,2]
[323754136,1714242142243,152.51470156,5.976e-05,2]
[323754137,1714242143487,152.45200581,4.923e-05,2]
[323754138,1714242143669,163.32959838,4.529e-05,2]
[323754139,1714242144160,163.32959838,7.796e-05,2]
[323754140,1714242144564,152.45200581,5.137e-05,2]
[323754141,1714242144606,198.88913512,3.681e-05,2]
[323754142,1714242144724,449.03761133,3.314e-05,2]
[323754143,1714242144765,164.7538211,5.321e-05,2]
[323754144,1714242144922,154.2098279,3.574e-05,2]
[323754145,1714242145306,198.88913512,6.27e-05,2]
[323754146,1714242145363,152.45200581,7.263e-05,2]
[323754147,1714242145542,449.03761133,3.736e-05,2]
[323754148,1714242145578,164.75382112,5.992e-05,2]
[323754149,1714242145811,154.2098279,8.067e-05,2]
[323754150,1714242146023,449.03761133,4.192e-05,2]
[323754151,1714242146112,154.2098279,8.147e-05,2]
[323754152,1714242146171,198.88913512,7.942e-05,2]
[323754153,1714242146283,449.03761133,4.731e-05,2]
[323754154,1714242146589,154.2098279,8.17e-05,2]
[323754155,1714242146726,198.88913512,8.244e-05,2]
[323754156,1714242146767,449.03761133,4.983e-05,2]
[323754157,1714242146897,153.99666678,3.956e-05,2]
[323754158,1714242147278,449.03761133,6.283e-05,2]
[323754159,1714242147392,154.2099099,3.418e-05,2]
[323754160,1714242147440,153.99666678,5.896e-05,2]
[323754161,1714242147528,150.80553321,3.155e-05,2]
[323754162,1714242147750,449.03761133,6.394e-05,2]
[323754163,1714242147849,182.47757243,5.294e-05,2]
[323754164,1714242147899,154.2099099,5.059e-05,2]
[323754165,1714242148929,154.2099099,5.707e-05,2]
[323754166,1714242149007,150.80553321,3.91e-05,2]
[323754167,1714242149081,198.5199913,3.112e-05,2]
[323754168,1714242149147,154.2099099,6.007e-05,2]
[323754169,1714242149184,152.97791668,3.755e-05,2]
[323754170,1714242149231,169.54946576,3.591e-05,2]
[323754171,1714242149280,150.80553321,4.451e-05,2]
[323754172,1714242149355,198.5199913,4.409e-05,2]
[323754173,1714242149440,154.2099099,6.201e-05,2]
[323754174,1714242149475,152.97791668,8.313e-05,2]
[323754175,1714242149596,150.80553321,5.488e-05,2]
[323754176,1714242149631,155.57596732,6.435e-05,2]
[323754177,1714242149850,198.5199913,5.289e-05,2]
[323754178,1714242149936,154.2099099,6.295e-05,2]
[323754179,1714242150088,169.54946576,4.106e-05,2]
[323754180,1714242150127,155.57596732,6.769e-05,2]
[323754181,1714242150170,150.80553321,6.38e-05,2]
[323754182,1714242150385,198.5199913,5.519e-05,2]
[323754183,1714242150774,154.2099099,7.952e-05,2]
[323754184,1714242150826,155.57596732,7.191e-05,2]
[323754185,1714242150919,198.5199913,7.341e-05,2]
[323754186,1714242151135,169.54946576,4.715e-05,2]
[323754187,1714242151446,198.5199913,7.496e-05,2]
[323754188,1714242151672,169.54946576,4.78e-05,2]
[323754189,1714242152220,169.54946576,4.963e-05,2]
[323754190,1714242152747,169.54946576,5.193e-05,2]
[323754191,1714242153806,169.54946576,5.655e-05,2]
[323754192,1714242154337,169.54946576,6.697e-05,2]
[323754193,1714242183022,781.6572709,8.501e-05,2]
[323754194,1714242242408,150.0,8.501e-05,2]
[323754195,1714242255265,187.75,7.345e-05,2]
[323754196,1714242302323,953.70124616,8.501e-05,2]
[323754197,1714242306528,155.68785924,8.501e-05,2]
[323754198,1714242326930,3001.37628927,8.501e-05,2]
[323754199,1714242340087,241.98,0.0001063,10]
[323754200,1714242402041,963.25,8.219e-05,2]
[323754201,1714242411121,1429.352568,8.178e-05,2]
[323754202,1714242418202,532.96037102,8.501e-05,2]
[323754203,1714242429534,-313.90333456,8.502e-05,2]
[323754204,1714242429559,-2322.6580486,8.502e-05,2]
[323754205,1714242429584,-22776.47505321,8.502e-05,2]
[323754206,1714242429609,-1245.03725456,8.503e-05,2]
[323754207,1714242429634,-341.92630907,8.587e-05,2]
[323754208,1714242437355,159.43756685,5.106e-05,2]
[323754209,1714242437472,156.10954879,4.008e-05,2]
[323754210,1714242437516,154.33935929,3.032e-05,2]
[323754211,1714242438001,156.10954879,6.946e-05,2]
[323754212,1714242438048,154.33935929,3.62e-05,2]
[323754213,1714242438344,988.06675175,3.924e-05,2]
[323754214,1714242438514,156.10954879,7.323e-05,2]
[323754215,1714242438683,389.72278016,5.457e-05,2]
[323754216,1714242438835,988.06675175,4.403e-05,2]
[323754217,1714242439012,156.10954879,8.053e-05,2]
[323754218,1714242439211,389.72278016,8.161e-05,2]
[323754219,1714242439374,988.06675175,6.614e-05,2]
[323754220,1714242440103,988.06675175,7.031e-05,2]
[323754235,1714242440437,988.06675175,7.28e-05,2]
[323754238,1714242440589,167.90291174,7.987e-05,2]
[323754254,1714242440910,988.06675175,7.473e-05,2]
[323754275,1714242441320,167.73123126,7.539e-05,2]
[323754278,1714242441453,988.06675175,8.147e-05,2]
[323754279,1714242443458,153.74189845,3.627e-05,2]
[323754280,1714242443665,158.47655819,5.671e-05,2]
[323754281,1714242443802,150.80553321,3.244e-05,2]
[323754282,1714242443912,152.53804916,4.226e-05,2]
[323754283,1714242443983,153.74189845,6.12e-05,2]
[323754284,1714242444195,158.47655819,8.045e-05,2]
[323754285,1714242444249,152.45200581,8.032e-05,2]
[323754286,1714242444308,150.80553321,4.394e-05,2]
[323754287,1714242444448,152.53804916,7.318e-05,2]
[323754288,1714242444506,153.74189845,6.551e-05,2]
[323754289,1714242444597,155.0,7.03e-05,2]
[323754290,1714242445044,150.80553321,5.341e-05,2]
[323754291,1714242445151,165.87140228,5.445e-05,2]
[323754292,1714242445420,150.80553321,6.701e-05,2]
[323754293,1714242445864,150.80553321,6.79e-05,2]
[323754294,1714242446246,166.66666667,5.063e-05,2]
[323754295,1714242446736,166.66666667,7.674e-05,2]
[323754296,1714242447953,158.81599304,5.132e-05,2]
[323754297,1714242448532,176.83814125,4.066e-05,2]
[323754298,1714242448585,158.81599304,5.299e-05,2]
[323754299,1714242449110,158.81599304,5.613e-05,2]
[323754300,1714242450180,158.81599304,6.372e-05,2]
[323754301,1714242450681,158.81599304,7.011e-05,2]
[323754302,1714242450812,154.28191063,3.337e-05,2]
[323754303,1714242451109,154.2098279,4.596e-05,2]
[323754305,1714242451384,154.2098279,7.545e-05,2]
[323754306,1714242451567,172.37058377,4.091e-05,2]
[323754307,1714242451736,158.81599304,7.861e-05,2]
[323754308,1714242451769,155.57596733,7.968e-05,2]
[323754309,1714242451871,155.42034362,5.065e-05,2]
[323754310,1714242451906,154.2098279,7.556e-05,2]
[323754311,1714242452002,152.97791668,3.896e-05,2]
[323754312,1714242452183,154.49647209,4.255e-05,2]
[323754313,1714242452219,172.37058377,4.213e-05,2]
[323754314,1714242452384,155.42034362,5.431e-05,2]
[323754315,1714242452432,154.2098279,8.039e-05,2]
[323754316,1714242452511,152.97791668,5.22e-05,2]
[323754317,1714242452698,172.37058377,6.037e-05,2]
[323754318,1714242452883,155.42034362,6.008e-05,2]
[323754319,1714242453026,152.97791668,7.286e-05,2]
[323754320,1714242453483,172.37058377,6.42e-05,2]
[323754321,1714242453571,153.04891921,5.046e-05,2]
[323754322,1714242453605,155.42034362,6.353e-05,2]
[323754323,1714242453715,154.2098279,8.275e-05,2]
[323754324,1714242453767,152.97791668,7.294e-05,2]
[323754325,1714242453836,172.37058377,6.649e-05,2]
[323754326,1714242453903,155.42034362,7.364e-05,2]
[323754327,1714242453983,154.2099099,3.554e-05,2]
[323754328,1714242454066,332.86462505,3.517e-05,2]
[323754329,1714242454203,172.37058377,8.425e-05,2]
[323754330,1714242454400,155.42034362,8.385e-05,2]
[323754331,1714242454506,154.2099099,4.26e-05,2]
[323754332,1714242454562,332.86462505,4.975e-05,2]
[323754333,1714242455193,154.2099099,8.452e-05,2]
[323754334,1714242455225,332.86462505,5.068e-05,2]
[323754335,1714242455574,332.86462505,6.356e-05,2]
[323754336,1714242456080,332.86462505,6.62e-05,2]
[323754337,1714242458023,332.86462505,7.902e-05,2]
[323754338,1714242473678,19684.04039141,8.178e-05,2]
[323754339,1714242483528,1374.80866039,8.178e-05,2]
[323754340,1714242484704,-1352.14217458,8.584e-05,2]
[323754341,1714242484727,-161.58324712,8.585e-05,2]
[323754342,1714242484752,-5548.56882649,8.585e-05,2]
[323754343,1714242484777,-320.25027245,8.586e-05,2]
[323754344,1714242484807,-155.0,8.586e-05,2]
[323754345,1714242484831,-363.92077602,8.586e-05,2]
[323754346,1714242484855,-363.38739989,8.586e-05,2]
[323754347,1714242484881,-487.5386522,8.586e-05,2]
[323754348,1714242484905,-155.0,8.586e-05,2]
[323754349,1714242484929,-92.60865125,8.586e-05,2]
[323754350,1714242486224,1472.230329,7.902e-05,2]
[323754351,1714242487684,9127.94378476,7.902e-05,2]
[323754352,1714242489111,721.41618642,8.178e-05,2]
[323754353,1714242494036,1687.12827459,7.902e-05,2]
[323754354,1714242501443,1374.80866039,7.902e-05,2]
[323754355,1714242521443,1374.80866039,7.902e-05,2]
[323754356,1714242539492,1374.80866039,7.902e-05,2]
[323754357,1714242540063,-781.6572709,8.585e-05,2]
[323754358,1714242540089,-236.84634227,8.595e-05,2]
[323754359,1714242540115,-152.97791668,8.596e-05,2]
[323754360,1714242540139,-3082.06843787,8.616e-05,2]
[323754361,1714242540164,-1746.45003228,8.617e-05,2]
[323754362,1714242559465,1374.80866039,7.902e-05,2]
[323754363,1714242577967,-458.70327511,8.616e-05,2]
[323754364,1714242577993,-1061.20461407,8.616e-05,2]
[323754365,1714242578017,-246.71333972,8.617e-05,2]
[323754366,1714242578042,-150.80553321,8.661e-05,2]
[323754367,1714242578066,-7082.57323789,8.661e-05,2]
[323754368,1714242586798,866.68214589,7.902e-05,2]
[323754369,1714242590241,-1631.486237,8.661e-05,2]
[323754370,1714242590268,-156.10954879,8.705e-05,2]
[323754371,1714242590292,-172.37058377,8.709e-05,2]
[323754372,1714242590315,-1792.23,8.72e-05,2]
[323754373,1714242590340,-247.80363044,8.727e-05,2]
[323754396,1714242632236,-155.68785924,8.659e-05,2]
[323754397,1714242632246,-953.70124616,8.66e-05,2]
[323754398,1714242632256,-166.25416248,8.661e-05,2]
[323754399,1714242632277,-791.12628128,8.661e-05,2]
[323754400,1714242632291,-23131.28835765,8.661e-05,2]
[323754401,1714242632304,-1836.70850841,8.661e-05,2]
[323754402,1714242632326,-749.56,8.661e-05,2]
[323754403,1714242632339,-496.346633,8.661e-05,2]
[323754404,1714242632351,-730.35536255,8.661e-05,2]
[323754405,1714242632392,-24258.92453455,8.661e-05,2]
[323754406,1714242632403,-387.99999996,8.661e-05,2]
[323754408,1714242637884,-660.0,8.659e-05,2]
[323754409,1714242637895,-149982.96999976,8.661e-05,2]
[323754411,1714242637905,-866.68214589,8.661e-05,2]
[323754413,1714242637915,-11253.5169336,8.661e-05,2]
[323754415,1714242637925,-559.74204524,8.661e-05,2]
[323754417,1714242637939,-2.19636956,8.727e-05,2]
[323754419,1714242637949,-154.33935929,8.8e-05,2]
[323754420,1714242637959,-988.06675175,8.821e-05,2]
[323754421,1714242637969,-150.80553321,8.853e-05,2]
[323754422,1714242637979,-174.01588048,8.865e-05,2]
[323754423,1714242637989,-710.96,8.868e-05,2]
[323754424,1714242637998,-165.09,8.89e-05,2]
[323754425,1714242638008,-988.06675175,8.916e-05,2]
[323754426,1714242638020,-154.33935929,8.951e-05,2]
[323754427,1714242638029,-586.66,8.956e-05,2]
[323754428,1714242638039,-158.81599304,8.961e-05,2]
[323754429,1714242638049,-177.7735231,8.976e-05,2]
[323754430,1714242638059,-200.0,8.984e-05,2]
[323754431,1714242638069,-6671.17,8.996e-05,2]
[323754432,1714242638079,-420.48,9.002e-05,2]
[323754433,1714242638089,-154.2098279,9.014e-05,2]
[323754434,1714242638099,-23900.0,9.046e-05,2]
[323754435,1714242638108,-155.42034362,9.048e-05,2]
[323754436,1714242638118,-156.28,9.049e-05,2]
[323754437,1714242638127,-156.28,9.057e-05,2]
[323754438,1714242638137,-156.28,9.065e-05,2]
[323754439,1714242638146,-156.28,9.072e-05,2]
[323754440,1714242638156,-156.28,9.08e-05,2]
[323754441,1714242638165,-156.28,9.087e-05,2]
[323754442,1714242638174,-1814.184,9.087e-05,2]
[323754443,1714242638188,-152.53,9.092e-05,2]
[323754445,1714242638198,-156.28,9.095e-05,2]
[323754447,1714242638207,-171.89406667,9.131e-05,2]
[323754448,1714242638216,-154.2099099,9.142e-05,2]
[323754449,1714242638225,-158.92,9.198e-05,2]
[323754450,1714242638235,-988.06675175,9.219e-05,2]
[323754451,1714242638245,-158.92,9.235e-05,2]
[323754452,1714242638255,-158.92,9.271e-05,2]
[323754453,1714242638264,-158.92,9.308e-05,2]
[323754454,1714242638474,-158.92,9.345e-05,2]
[323754455,1714242638486,-156.10954879,9.364e-05,2]
[323754456,1714242638493,-158.92,9.382e-05,2]
[323754457,1714242638503,-158.92,9.419e-05,2]
[323754458,1714242638513,-158.92,9.456e-05,2]
[323754459,1714242638523,-159.43756685,9.459e-05,2]
[323754460,1714242638532,-158.92,9.493e-05,2]
[323754461,1714242638542,-158.92,9.53e-05,2]
[323754462,1714242638552,-154.49647209,9.547e-05,2]
[323754463,1714242638562,-158.92,9.566e-05,2]
[323754464,1714242638571,-158.92,9.603e-05,2]
[323754465,1714242638580,-154.33935929,9.614e-05,2]
[323754466,1714242638590,-158.92,9.64e-05,2]
[323754467,1714242638599,-499.99,9.67e-05,2]
[323754468,1714242638608,-224.99,9.67e-05,2]
[323754469,1714242638617,-158.92,9.677e-05,2]
[323754470,1714242638627,-154.33935929,9.794e-05,2]
[323754471,1714242638636,-153.74189845,9.831e-05,2]
[323754472,1714242638646,-170.40008406,9.836e-05,2]
[323754473,1714242638656,-165.87140228,9.874e-05,2]
[323754474,1714242638665,-152.45200581,9.887e-05,2]
[323754475,1714242638675,-172.37058377,9.896e-05,2]
[323754476,1714242638688,-154.2098279,9.914e-05,2]
[323754477,1714242638697,-154.2099099,9.934e-05,2]
[323754478,1714242638706,-313.90333456,9.976e-05,2]
[323754479,1714242638715,-710.96,9.977e-05,2]
[323754480,1714242638725,-323.99205487,0.00010043,2]
[323754481,1714242638733,-172.37058377,0.00010044,2]
[323754482,1714242638742,-586.66,0.00010075,2]
[323754483,1714242638751,-332.86462505,0.00010107,2]
[323754484,1714242638760,-988.06675175,0.00010112,2]
[323754485,1714242638769,-16348.9298,0.00010128,2]
[323754486,1714242638778,-155.0,0.00010229,2]
[323754487,1714242638788,-155.30252456,0.00010229,2]
[323754488,1714242638797,-159.1027176,0.00010298,2]
[323754489,1714242638807,-242.66,0.00010317,2]
[323754490,1714242638816,-988.06675175,0.00010324,2]
[323754491,1714242638826,-389.72278016,0.00010342,2]
[323754492,1714242638836,-988.06675175,0.00010393,2]
[323754493,1714242638845,-963.25,0.00010424,2]
[323754494,1714242638855,-152.53804916,0.00010478,2]
[323754495,1714242638865,-152.53804916,0.00010542,2]
[323754496,1714242638875,-154.33935929,0.00010552,2]
[323754497,1714242638884,-191.91530623,0.00010577,2]
[323754498,1714242638893,-221.89412981,0.00010577,2]
[323754499,1714242638902,-1442.02260317,0.000106,2]
[323754500,1714242638912,-1000.0,0.00010629,2]
[323754501,1714242638921,-179.73027073,0.0001063,2]